fUSD/lending_fUSD_20251120
["ID","MTS","AMOUNT","RATE_DAILY","PERIOD"]
[394495838,1763632326064,-1698.56,0.000411,120]
[394495839,1763632326075,-590.55893596,0.000411,120]
[394495840,1763632326085,-590.55893596,0.000411,120]
[394495841,1763632326095,-590.55893596,0.000411,120]
[394495842,1763632326106,-590.55893596,0.000411,120]
[394495843,1763632326116,-590.55893596,0.000411,120]
[394495844,1763632326127,-590.55893596,0.000411,120]
[394495845,1763632326137,-590.55893596,0.000411,120]
[394495846,1763632326148,-590.55893596,0.000411,120]
[394495847,1763632326158,-590.55893596,0.000411,120]
[394495848,1763632326169,-590.55893596,0.000411,120]
[394495849,1763632326179,-590.55893596,0.000411,120]
[394495850,1763632326190,-590.55893596,0.000411,120]
[394495851,1763632326200,-590.55893596,0.000411,120]
[394495852,1763632326211,-590.55893596,0.000411,120]
[394495853,1763632326222,-590.55893596,0.000411,120]
[394495854,1763632326233,-590.55893596,0.000411,120]
[394495855,1763632326244,-590.55893596,0.000411,120]
[394495856,1763632326255,-590.55893596,0.000411,120]
[394495857,1763632326265,-590.55893596,0.000411,120]
[394495858,1763632326275,-590.55,0.000411,120]
[394495859,1763632326285,-1377.97085058,0.000411,120]
[394495860,1763632326295,-1377.97085058,0.000411,120]
[394495861,1763632326306,-1377.97085058,0.000411,120]
[394495862,1763632326316,-1377.97085058,0.000411,120]
[394495863,1763632326327,-1377.97085058,0.000411,120]
[394495864,1763632326337,-1377.97085058,0.000411,120]
[394495865,1763632326348,-1377.97085058,0.000411,120]
[394495866,1763632326358,-1377.97085058,0.000411,120]
[394495867,1763632326369,-1377.97085058,0.000411,120]
[394495868,1763632326378,-1377.97085058,0.000411,120]
[394495869,1763632326389,-1377.97085058,0.000411,120]
[394495870,1763632326399,-1377.97085058,0.000411,120]
[394495871,1763632326409,-1377.97085058,0.000411,120]
[394495872,1763632326424,-1377.97085058,0.000411,120]
[394495873,1763632326435,-1377.97085058,0.000411,120]
[394495874,1763632326445,-1377.97085058,0.000411,120]
[394495875,1763632326456,-1377.97085058,0.000411,120]
[394495876,1763632326466,-1377.97085058,0.000411,120]
[394495877,1763632326477,-1377.97085058,0.000411,120]
[394495878,1763632326487,-1377.97,0.000411,120]
[394495879,1763632326497,-500.0,0.000411,2]
[394495880,1763632326507,-1000.0,0.00041101,14]
[394495881,1763632326517,-300.0,0.00041101,2]
[394495882,1763632326527,-300.0,0.00041107,2]
[394495883,1763632326537,-150.89,0.00041113,120]
[394495884,1763632326547,-300.0,0.00041116,2]
[394495885,1763632326557,-300.0,0.00041118,2]
[394495886,1763632326567,-300.0,0.00041121,2]
[394495887,1763632326578,-150.0,0.00041121,14]
[394495888,1763632326589,-500.0,0.00041123,2]
[394495889,1763632326599,-300.0,0.00041126,2]
[394495890,1763632326608,-300.0,0.00041146,2]
[394495891,1763632326619,-1000.0,0.00041149,14]
[394495892,1763632326630,-500.0,0.00041151,2]
[394495893,1763632326639,-1138.02345263,0.00041151,50]
[394495894,1763632326650,-1120.33073166,0.00041151,50]
[394495895,1763632326660,-1095.26866908,0.00041151,50]
[394495896,1763632326670,-1121.6720719,0.00041151,50]
[394495897,1763632326680,-1115.47110158,0.00041151,50]
[394495898,1763632326691,-1001.52962573,0.00041151,50]
[394495899,1763632326701,-1001.55095883,0.00041151,50]
[394495900,1763632326711,-1106.05584223,0.00041151,50]
[394495901,1763632326721,-1021.675059,0.00041151,50]
[394495902,1763632326731,-1101.32396291,0.00041151,50]
[394495903,1763632326742,-1031.51661726,0.00041151,50]
[394495904,1763632326751,-1059.81959596,0.00041151,50]
[394495905,1763632326761,-1257.84636249,0.00041151,50]
[394495906,1763632326771,-300.0,0.00041162,2]
[394495907,1763632326787,-300.0,0.00041162,2]
[394495908,1763632326799,-928.01677968,0.00041163,120]
[394495909,1763632326809,-300.0,0.00041165,2]
[394495910,1763632326819,-300.0,0.00041168,2]
[394495911,1763632326831,-480.821903,0.00041178,2]
[394495912,1763632326842,-300.0,0.00041183,2]
[394495913,1763632326852,-300.0,0.00041191,2]
[394495914,1763632326862,-150.0,0.00041193,120]
[394495915,1763632326875,-300.0,0.00041193,2]
[394495916,1763632326886,-300.0,0.00041198,2]
[394495917,1763632326898,-1000.0,0.000412,14]
[394495919,1763632327075,-300.0,0.0004121,2]
[394495920,1763632327087,-300.0,0.00041213,2]
[394495921,1763632327097,-150.89,0.00041213,120]
[394495922,1763632327106,-300.0,0.00041227,2]
[394495923,1763632327116,-300.0,0.00041228,2]
[394495924,1763632327129,-1000.0,0.00041259,14]
[394495925,1763632327138,-1000.0,0.00041272,14]
[394495926,1763632327148,-300.0,0.00041279,2]
[394495927,1763632327157,-152.0,0.00041285,11]
[394495928,1763632327167,-617.91613,0.00041288,30]
[394495929,1763632327178,-17823.47499708,0.0004129,7]
[394495930,1763632327194,-300.0,0.00041291,2]
[394495931,1763632327204,-300.0,0.00041297,2]
[394495932,1763632327214,-1000.0,0.000413,14]
[394495933,1763632327224,-300.0,0.00041305,2]
[394495934,1763632327235,-151.03173463,0.00041313,120]
[394495935,1763632327244,-300.0,0.00041314,2]
[394495936,1763632327254,-1022.0,0.0004132,30]
[394495937,1763632327264,-761.35287047,0.0004132,2]
[394495938,1763632327273,-154.51299331,0.00041326,14]
[394495939,1763632327282,-300.0,0.00041335,2]
[394495940,1763632327292,-300.0,0.00041342,2]
[394495941,1763632327301,-300.0,0.0004135,2]
[394495942,1763632327311,-150.0,0.00041358,14]
[394495943,1763632327321,-500.0,0.00041369,15]
[394495944,1763632327334,-500.0,0.00041369,2]
[394495945,1763632327344,-1025.68,0.00041369,2]
[394495946,1763632327354,-500.0,0.00041369,2]
[394495947,1763632327364,-4229.25,0.00041369,2]
[394495948,1763632327373,-500.0,0.00041369,2]
[394495949,1763632327383,-500.0,0.00041369,2]
[394495950,1763632327393,-300.0,0.00041369,2]
[394495951,1763632327403,-300.0,0.00041369,2]
[394495952,1763632327412,-500.0,0.00041369,2]
[394495953,1763632327422,-503.20975351,0.00041369,2]
[394495954,1763632327431,-500.0,0.0004137,30]
[394495955,1763632327442,-300.0,0.00041387,2]
[394495956,1763632327452,-300.0,0.00041387,2]
[394495957,1763632327461,-400.0,0.000414,120]
[394495958,1763632327471,-1000.0,0.00041408,14]
[394495959,1763632327482,-550.68,0.00041416,30]
[394495960,1763632327492,-550.68,0.00041416,30]
[394495961,1763632327502,-550.68,0.00041416,30]
[394495962,1763632327512,-550.68,0.00041416,30]
[394495963,1763632327522,-550.68,0.00041416,30]
[394495964,1763632327532,-550.68,0.00041416,30]
[394495965,1763632327542,-550.68,0.00041416,30]
[394495966,1763632327552,-550.68,0.00041416,30]
[394495967,1763632327562,-550.68,0.00041416,30]
[394495968,1763632327572,-550.68,0.00041416,30]
[394495969,1763632327583,-1101.36,0.00041416,30]
[394495970,1763632327594,-550.68,0.00041416,30]
[394495971,1763632327604,-550.68,0.00041416,30]
[394495972,1763632327614,-550.68,0.00041416,30]
[394495973,1763632327625,-550.68,0.00041416,30]
[394495974,1763632327635,-550.68,0.00041416,30]
[394495975,1763632327645,-550.68,0.00041416,30]
[394495976,1763632327656,-550.68,0.00041416,30]
[394495977,1763632327666,-550.68,0.00041416,30]
[394495978,1763632327676,-550.68,0.00041416,30]
[394495979,1763632327686,-550.68,0.00041416,30]
[394495980,1763632327695,-550.68,0.00041416,30]
[394495981,1763632327705,-550.68,0.00041416,30]
[394495982,1763632327716,-166.0,0.00041425,90]
[394495983,1763632327726,-164.0,0.00041425,90]
[394495984,1763632327736,-1000.0,0.00041442,14]
[394495985,1763632327745,-1630.12192876,0.0004145,30]
[394495986,1763632327755,-300.0,0.00041472,2]
[394495987,1763632327766,-150.0,0.00041475,14]
[394495988,1763632327775,-300.0,0.0004148,2]
[394495989,1763632327788,-617.91613,0.00041488,30]
[394495990,1763632327801,-1000.0,0.00041492,14]
[394495991,1763632327811,-300.0,0.00041495,2]
[394495992,1763632327822,-300.0,0.00041558,2]
[394495993,1763632327835,-300.0,0.00041573,2]
[394495994,1763632327845,-1000.0,0.00041598,14]
[394495995,1763632327855,-300.0,0.00041606,2]
[394495996,1763632327865,-575.0,0.00041611,2]
[394495997,1763632327875,-1319.0,0.00041611,2]
[394495998,1763632327886,-764.048,0.00041611,2]
[394495999,1763632327895,-907.0,0.00041611,2]
[394496000,1763632327906,-1191.0,0.00041611,2]
[394496001,1763632327915,-794.0,0.00041611,2]
[394496002,1763632327925,-1256.0,0.00041611,2]
[394496003,1763632327935,-1000.0,0.00041618,14]
[394496004,1763632327945,-256.71631754,0.00041643,15]
[394496005,1763632327955,-500.0,0.00041643,2]
[394496006,1763632327965,-1025.68,0.00041643,2]
[394496007,1763632327976,-500.0,0.00041643,2]
[394496008,1763632327986,-4229.25,0.00041643,2]
[394496009,1763632327996,-500.0,0.00041643,2]
[394496010,1763632328006,-500.0,0.00041643,2]
[394496011,1763632328016,-300.0,0.00041643,2]
[394496012,1763632328026,-300.0,0.00041643,2]
[394496013,1763632328037,-500.0,0.00041643,2]
[394496014,1763632328047,-500.0,0.00041644,30]
[394496015,1763632328057,-1000.0,0.00041669,14]
[394496016,1763632328067,-617.91613,0.00041688,30]
[394496017,1763632328078,-300.0,0.00041691,2]
[394496018,1763632328089,-300.0,0.00041692,2]
[394496019,1763632328099,-300.0,0.00041697,2]
[394496020,1763632328110,-300.0,0.00041715,2]
[394496021,1763632328120,-300.0,0.00041723,2]
[394496022,1763632328131,-300.0,0.00041726,2]
[394496023,1763632328143,-1000.0,0.00041734,14]
[394496024,1763632328153,-1022.0,0.00041742,30]
[394496025,1763632328163,-300.0,0.00041748,2]
[394496026,1763632328173,-88059.17445721,0.0004175,30]
[394496027,1763632328184,-1014.96,0.0004176,120]
[394496028,1763632328194,-1000.0,0.0004176,14]
[394496029,1763632328205,-300.0,0.00041771,2]
[394496030,1763632328216,-300.0,0.00041772,2]
[394496031,1763632328227,-300.0,0.00041779,2]
[394496032,1763632328237,-300.0,0.00041787,2]
[394496033,1763632328247,-1031.4582,0.00041799,2]
[394496034,1763632328258,-165.47731785,0.000418,2]
[394496035,1763632328268,-189.28916148,0.000418,120]
[394496036,1763632328278,-240.27492228,0.000418,120]
[394496037,1763632328288,-306.83529581,0.000418,120]
[394496038,1763632328298,-263.92306069,0.000418,120]
[394496039,1763632328309,-473.94073696,0.000418,120]
[394496040,1763632328320,-300.0,0.000418,2]
[394496041,1763632328333,-300.0,0.00041805,2]
[394496042,1763632328344,-300.0,0.00041821,2]
[394496043,1763632328354,-300.0,0.00041826,2]
[394496044,1763632328365,-300.0,0.00041829,2]
[394496045,1763632328375,-173.74921227,0.0004183,120]
[394496046,1763632328385,-1280.37629059,0.0004183,120]
[394496047,1763632328396,-175.24866702,0.0004183,120]
[394496048,1763632328407,-300.0,0.00041834,2]
[394496049,1763632328417,-223.96854226,0.00041838,120]
[394496050,1763632328427,-300.0,0.00041852,2]
[394496051,1763632328438,-2000.0,0.00041868,3]
[394496052,1763632328448,-1000.0,0.00041874,14]
[394496053,1763632328457,-300.0,0.00041877,2]
[394496054,1763632328466,-617.91613,0.00041888,30]
[394496055,1763632328476,-150.0,0.00041897,30]
[394496056,1763632328486,-200.0,0.000419,120]
[394496057,1763632328496,-203.6357478,0.000419,120]
[394496058,1763632328506,-217.32483357,0.000419,120]
[394496059,1763632328516,-175.59342701,0.000419,120]
[394496060,1763632328527,-201.11936185,0.000419,120]
[394496061,1763632328538,-186.02,0.000419,48]
[394496063,1763632328549,-154.8,0.000419,30]
[394496064,1763632328560,-500.0,0.00041917,2]
[394496065,1763632328571,-1025.68,0.00041917,2]
[394496066,1763632328583,-500.0,0.00041917,2]
[394496067,1763632328595,-4229.25,0.00041917,2]
[394496068,1763632328606,-500.0,0.00041917,2]
[394496069,1763632328617,-500.0,0.00041917,2]
[394496070,1763632328627,-300.0,0.00041917,2]
[394496071,1763632328638,-300.0,0.00041917,2]
[394496072,1763632328649,-500.0,0.00041917,2]
[394496073,1763632328659,-500.0,0.00041918,30]
[394496074,1763632328670,-1277.13166293,0.00041918,120]
[394496075,1763632328680,-1000.0,0.00041918,30]
[394496076,1763632328691,-1000.0,0.00041918,30]
[394496077,1763632328702,-1000.0,0.00041918,30]
[394496078,1763632328712,-1000.0,0.00041918,30]
[394496079,1763632328722,-1000.0,0.00041918,30]
[394496080,1763632328733,-1000.0,0.00041918,30]
[394496081,1763632328745,-1000.0,0.00041918,30]
[394496082,1763632328757,-1000.0,0.00041918,30]
[394496083,1763632328768,-1000.0,0.00041918,30]
[394496084,1763632328779,-1000.0,0.00041918,30]
[394496085,1763632328793,-1000.0,0.00041918,30]
[394496086,1763632328805,-1000.0,0.00041918,30]
[394496087,1763632328815,-1000.0,0.00041918,30]
[394496088,1763632328827,-1000.0,0.00041918,30]
[394496089,1763632328838,-1000.0,0.00041918,30]
[394496090,1763632328850,-1000.0,0.00041918,30]
[394496091,1763632328860,-1000.0,0.00041918,30]
[394496092,1763632328874,-1000.0,0.00041918,30]
[394496093,1763632328884,-1000.0,0.00041918,30]
[394496094,1763632328895,-1000.0,0.00041918,30]
[394496095,1763632328905,-1000.0,0.00041918,30]
[394496096,1763632328916,-1000.0,0.00041918,30]
[394496097,1763632328927,-1000.0,0.00041918,30]
[394496098,1763632328938,-1000.0,0.00041918,30]
[394496099,1763632328949,-1000.0,0.00041918,30]
[394496100,1763632328963,-1000.0,0.00041918,30]
[394496101,1763632328974,-1000.0,0.00041918,30]
[394496102,1763632328985,-1000.0,0.00041918,30]
[394496103,1763632328995,-1000.0,0.00041918,30]
[394496104,1763632329006,-1000.0,0.00041918,30]
[394496105,1763632329016,-1000.0,0.00041918,30]
[394496106,1763632329026,-1000.0,0.00041918,30]
[394496107,1763632329037,-1000.0,0.00041918,30]
[394496108,1763632329047,-1000.0,0.00041918,30]
[394496109,1763632329058,-1000.0,0.00041918,30]
[394496110,1763632329068,-1000.0,0.00041918,30]
[394496111,1763632329080,-1000.0,0.00041918,30]
[394496112,1763632329090,-1000.0,0.00041918,30]
[394496113,1763632329102,-1000.0,0.00041918,30]
[394496114,1763632329113,-1000.0,0.00041918,30]
[394496115,1763632329124,-1000.0,0.00041918,30]
[394496116,1763632329135,-1000.0,0.00041918,30]
[394496117,1763632329146,-1000.0,0.00041918,30]
[394496118,1763632329156,-1000.0,0.00041918,30]
[394496119,1763632329166,-1000.0,0.00041918,30]
[394496120,1763632329177,-1000.0,0.00041918,30]
[394496121,1763632329191,-1000.0,0.00041918,30]
[394496122,1763632329203,-1000.0,0.00041918,30]
[394496123,1763632329213,-1000.0,0.00041918,30]
[394496124,1763632329225,-1000.0,0.00041918,30]
[394496125,1763632329235,-1000.0,0.00041918,30]
[394496126,1763632329246,-1000.0,0.00041918,30]
[394496127,1763632329258,-1000.0,0.00041918,30]
[394496128,1763632329268,-1000.0,0.00041918,30]
[394496129,1763632329279,-1000.0,0.00041918,30]
[394496130,1763632329289,-1000.0,0.00041918,30]
[394496131,1763632329299,-1000.0,0.00041918,30]
[394496132,1763632329309,-1000.0,0.00041918,30]
[394496133,1763632329319,-1000.0,0.00041918,30]
[394496134,1763632329330,-1000.0,0.00041918,30]
[394496135,1763632329340,-1000.0,0.00041918,30]
[394496136,1763632329351,-1000.0,0.00041918,30]
[394496137,1763632329361,-1000.0,0.00041918,30]
[394496138,1763632329370,-1000.0,0.00041918,30]
[394496139,1763632329380,-1000.0,0.00041918,30]
[394496140,1763632329393,-1000.0,0.00041918,30]
[394496141,1763632329404,-1000.0,0.00041918,30]
[394496142,1763632329414,-1000.0,0.00041918,30]
[394496143,1763632329424,-1000.0,0.00041918,30]
[394496144,1763632329434,-1000.0,0.00041918,30]
[394496145,1763632329444,-1000.0,0.00041918,30]
[394496146,1763632329454,-1000.0,0.00041918,30]
[394496147,1763632329463,-188.0,0.00041918,30]
[394496148,1763632329474,-1000.0,0.00041918,30]
[394496149,1763632329484,-1000.0,0.00041918,30]
[394496150,1763632329494,-1000.0,0.00041918,30]
[394496151,1763632329505,-1000.0,0.00041918,30]
[394496152,1763632329514,-1000.0,0.00041918,30]
[394496153,1763632329524,-1000.0,0.00041918,30]
[394496154,1763632329535,-1000.0,0.00041918,30]
[394496155,1763632329545,-1000.0,0.00041918,30]
[394496156,1763632329555,-1000.0,0.00041918,30]
[394496157,1763632329565,-1000.0,0.00041918,30]
[394496158,1763632329576,-1000.0,0.00041918,30]
[394496159,1763632329586,-1000.0,0.00041918,30]
[394496160,1763632329596,-1000.0,0.00041918,30]
[394496161,1763632329606,-1000.0,0.00041918,30]
[394496162,1763632329616,-1000.0,0.00041918,30]
[394496163,1763632329626,-1000.0,0.00041918,30]
[394496164,1763632329637,-1000.0,0.00041918,30]
[394496165,1763632329647,-1000.0,0.00041918,30]
[394496166,1763632329658,-1000.0,0.00041918,30]
[394496167,1763632329669,-1000.0,0.00041918,30]
[394496168,1763632329680,-1000.0,0.00041918,30]
[394496169,1763632329850,-1000.0,0.00041918,30]
[394496170,1763632329862,-1000.0,0.00041918,30]
[394496171,1763632329871,-1000.0,0.00041918,30]
[394496172,1763632329881,-1000.0,0.00041918,30]
[394496173,1763632329891,-300.0,0.0004193,2]
[394496174,1763632329901,-1000.0,0.00041936,14]
[394496175,1763632329911,-408.02351572,0.00041939,14]
[394496176,1763632329921,-300.0,0.00041942,2]
[394496177,1763632329931,-900.0,0.00041958,30]
[394496178,1763632329941,-900.0,0.00041958,30]
[394496179,1763632329950,-900.0,0.00041958,30]
[394496180,1763632329960,-900.0,0.00041958,30]
[394496181,1763632329969,-900.0,0.00041958,30]
[394496182,1763632329979,-900.0,0.00041958,30]
[394496183,1763632329989,-1000.0,0.00041975,14]
[394496184,1763632329999,-222.169,0.0004198,40]
[394496185,1763632330009,-1000.0,0.00041982,14]
[394496186,1763632330020,-1000.0,0.00041984,14]
[394496187,1763632330030,-186.2748715,0.00041986,30]
[394496188,1763632330039,-163.85,0.00041987,30]
[394496189,1763632330048,-300.0,0.00041989,2]
[394496190,1763632330058,-4703.05063062,0.0004199,120]
[394496191,1763632330068,-1000.33508204,0.0004199,2]
[394496192,1763632330077,-162.55780018,0.0004199,14]
[394496193,1763632330087,-156.0,0.0004199,14]
[394496194,1763632330097,-151.0,0.0004199,14]
[394496195,1763632330106,-152.0,0.0004199,14]
[394496196,1763632330116,-156.32332827,0.0004199,14]
[394496197,1763632330126,-151.0,0.0004199,14]
[394496198,1763632330135,-152.0,0.0004199,14]
[394496199,1763632330145,-156.0,0.0004199,14]
[394496200,1763632330155,-152.0,0.0004199,14]
[394496201,1763632330165,-151.0,0.0004199,14]
[394496202,1763632330174,-911.0590491,0.0004199,14]
[394496203,1763632330183,-157.61419424,0.0004199,14]
[394496204,1763632330193,-152.0,0.0004199,14]
[394496205,1763632330202,-222.38828946,0.0004199,14]
[394496206,1763632330212,-829.0,0.0004199,14]
[394496207,1763632330222,-152.0,0.0004199,14]
[394496208,1763632330233,-829.0,0.0004199,14]
[394496209,1763632330242,-151.0,0.0004199,14]
[394496210,1763632330252,-185.84471793,0.0004199,14]
[394496211,1763632330262,-901.6027639,0.0004199,14]
[394496212,1763632330271,-151.0,0.0004199,14]
[394496213,1763632330280,-152.0,0.0004199,14]
[394496214,1763632330293,-151.0,0.0004199,14]
[394496215,1763632330303,-152.0,0.0004199,14]
[394496216,1763632330313,-151.0,0.0004199,14]
[394496217,1763632330323,-152.0,0.0004199,14]
[394496218,1763632330333,-166.0,0.0004199,14]
[394496219,1763632330343,-151.0,0.0004199,14]
[394496220,1763632330352,-152.0,0.0004199,14]
[394496221,1763632330362,-151.0,0.0004199,14]
[394496222,1763632330372,-152.0,0.0004199,14]
[394496223,1763632330381,-151.0,0.0004199,14]
[394496224,1763632330392,-152.0,0.0004199,14]
[394496225,1763632330402,-151.0,0.0004199,14]
[394496226,1763632330411,-152.0,0.0004199,14]
[394496227,1763632330421,-151.0,0.0004199,14]
[394496228,1763632330430,-152.0,0.0004199,14]
[394496229,1763632330440,-290.28933422,0.0004199,14]
[394496230,1763632330449,-151.0,0.0004199,14]
[394496231,1763632330460,-5444.0,0.00041991,120]
[394496232,1763632330469,-5728.4,0.00041993,30]
[394496233,1763632330479,-370.1918914,0.00041999,120]
[394496234,1763632330488,-659.92735987,0.00042,2]
[394496235,1763632330498,-493111.1658,0.00042,3]
[394496236,1763632330508,-29091.65009835,0.00042,2]
[394496237,1763632330518,-260.84,0.00042,30]
[394496238,1763632330527,-1131.32695195,0.00042,120]
[394496239,1763632330536,-434.88715765,0.00042,120]
[394496240,1763632330546,-246.26903287,0.00042,120]
[394496241,1763632330555,-300.0,0.00042,120]
[394496242,1763632330565,-950.7,0.00042,30]
[394496243,1763632330574,-176.753355,0.00042,49]
[394496244,1763632330584,-165.0,0.00042,30]
[394496245,1763632330594,-161.0,0.00042,30]
[394496246,1763632330603,-161.0,0.00042,30]
[394496247,1763632330613,-161.0,0.00042,30]
[394496248,1763632330623,-161.0,0.00042,30]
[394496249,1763632330633,-1000.0,0.00042039,15]
[394496250,1763632330642,-13114645.98241786,0.0004204,7]
[394496251,1763632330652,-40829959.97643505,0.0004204,7]
[394496252,1763632331007,201.0,0.00032877,120]
[394496254,1763632331878,163.2114,0.00016128,2]
[394496256,1763632333337,8136.8186,0.00016128,2]
[394496257,1763632333362,10000.01,0.00016128,2]
[394496258,1763632333385,10000.01,0.00016128,2]
[394496259,1763632333408,10000.01,0.00016128,2]
[394496260,1763632333432,10000.01,0.00016128,2]
[394496261,1763632333455,10000.01,0.00016128,2]
[394496262,1763632333479,10000.01,0.00016128,2]
[394496263,1763632333502,10000.01,0.00016128,2]
[394496264,1763632333525,10000.01,0.00016128,2]
[394496265,1763632333549,10000.01,0.00016128,2]
[394496266,1763632333573,10000.01,0.00016128,2]
[394496267,1763632333598,10000.01,0.00016128,2]
[394496268,1763632333623,10000.01,0.00016128,2]
[394496269,1763632333648,10000.01,0.00016128,2]
[394496270,1763632333672,10000.01,0.00016128,2]
[394496271,1763632334558,-418.73460921,0.00016128,2]
[394496274,1763632337738,-289.74907422,0.00016128,2]
[394496277,1763632339120,-9381.63061362,0.00016128,2]
[394496278,1763632340350,-10000.01,0.00016128,2]
[394496279,1763632340468,-10000.01,0.00016128,2]
[394496280,1763632340657,-10000.01,0.00016128,2]
[394496281,1763632340787,-10000.01,0.00016128,2]
[394496282,1763632341024,165.554065,0.0004204,120]
[394496283,1763632341041,-10000.01,0.00016128,2]
[394496284,1763632341067,-10000.01,0.00016128,2]
[394496285,1763632341347,-10000.01,0.00016128,2]
[394496286,1763632341384,165.554065,0.0004204,120]
[394496287,1763632341478,-10000.01,0.00016128,2]
[394496288,1763632341512,-297.39,0.00016128,2]
[394496289,1763632341586,-10000.01,0.00016128,2]
[394496290,1763632341706,-10000.01,0.00016128,2]
[394496291,1763632341817,-10000.01,0.00016128,2]
[394496292,1763632341854,152.077704,0.0004204,120]
[394496293,1763632341922,165.554065,0.0004204,120]
[394496294,1763632341954,-10000.01,0.00016128,2]
[394496296,1763632342081,-10000.01,0.00016128,2]
[394496297,1763632342190,-10000.01,0.00016128,2]
[394496298,1763632342257,152.077704,0.0004204,120]
[394496299,1763632342293,165.554065,0.0004204,120]
[394496300,1763632342631,152.077704,0.0004204,120]
[394496301,1763632342666,165.554065,0.0004204,120]
[394496302,1763632343025,165.554065,0.0004204,120]
[394496303,1763632343233,152.077704,0.0004204,120]
[394496304,1763632343578,-312.00000017,0.00016128,2]
[394496305,1763632343753,165.554065,0.0004204,120]
[394496306,1763632344100,165.554065,0.0004204,120]
[394496308,1763632344456,165.554065,0.0004204,120]
[394496309,1763632346449,-10000.01,0.00016128,2]
[394496310,1763632346603,-10000.01,0.00016128,2]
[394496312,1763632346762,-10000.01,0.00016128,2]
[394496313,1763632346817,-294.90183944,0.00016128,2]
[394496314,1763632346886,-10000.01,0.00016128,2]
[394496315,1763632346997,-10000.01,0.00016128,2]
[394496316,1763632347164,-10000.01,0.00016128,2]
[394496317,1763632347394,-10000.01,0.00016128,2]
[394496318,1763632347515,-10000.01,0.00016128,2]
[394496319,1763632347631,-10000.01,0.00016128,2]
[394496320,1763632347733,-10000.01,0.00016128,2]
[394496321,1763632347870,-10000.01,0.00016128,2]
[394496322,1763632349497,-10000.01,0.00016128,2]
[394496323,1763632350341,-801.36451612,0.00016128,2]
[394496325,1763632352338,157.69719,0.0004204,120]
[394496326,1763632352682,157.69719,0.0004204,120]
[394496327,1763632352867,-10000.01,0.00016128,2]
[394496328,1763632353008,157.69719,0.0004204,120]
[394496329,1763632353239,-10000.01,0.00016128,2]
[394496330,1763632353294,-262.22754723,0.00016128,2]
[394496332,1763632353359,157.69719,0.0004204,120]
[394496334,1763632353374,-10000.01,0.00016128,2]
[394496335,1763632353471,-10000.01,0.00016128,2]
[394496336,1763632353578,-10000.01,0.00016128,2]
[394496337,1763632353690,-10000.01,0.00016128,2]
[394496338,1763632353780,157.69719,0.0004204,120]
[394496339,1763632353816,-10000.01,0.00016128,2]
[394496340,1763632354316,157.69719,0.0004204,120]
[394496341,1763632354648,157.69719,0.0004204,120]
[394496343,1763632356889,-217.62014486,0.00016128,2]
[394496345,1763632358626,-10000.01,0.00016128,2]
[394496347,1763632361646,-10000.01,0.00016128,2]
[394496348,1763632361760,-10000.01,0.00016128,2]
[394496349,1763632361875,-10000.01,0.00016128,2]
[394496350,1763632361986,-10000.01,0.00016128,2]
[394496351,1763632362084,-10000.01,0.00016128,2]
[394496352,1763632362199,-10000.01,0.00016128,2]
[394496353,1763632362308,-10000.01,0.00016128,2]
[394496355,1763632367628,156.64935,0.00042041,120]